fUSD/lending_fUSD_20240217
["ID","MTS","AMOUNT","RATE_DAILY","PERIOD"]
[314298521,1708164632067,-10293.696,0.000229,2]
[314298522,1708164632076,-156.15075556,0.000229,2]
[314298523,1708164632085,-2180.58413957,0.000229,2]
[314298524,1708164632095,-170.26106012,0.000229,2]
[314298525,1708164632104,-853.1,0.00022948,2]
[314298526,1708164632113,-162.89,0.00022982,2]
[314298527,1708164632122,-113364.0,0.00022986,2]
[314298528,1708164632131,-150.0,0.00022996,2]
[314298529,1708164632141,-741.38526417,0.00022999,2]
[314298530,1708164632151,-2152.62569292,0.00022999,2]
[314298531,1708164632160,-453774.80756217,0.00023,2]
[314298532,1708164632309,-2584.22741585,0.00023,2]
[314298539,1708164637633,-462.2961555,0.00023,2]
[314298540,1708164637645,-89015.85127324,0.00023,2]
[314298541,1708164637657,-3395.54794444,0.00023,2]
[314298542,1708164637691,-1437.43075641,0.00023,2]
[314298543,1708164637703,-2254.34136537,0.00023,2]
[314298544,1708164637715,-1197.17601044,0.00023,2]
[314298545,1708164637726,-2113.58216162,0.00023,2]
[314298546,1708164637738,-1006.87493225,0.00023,2]
[314298547,1708164637750,-1265674.45831671,0.00023,2]
[314298548,1708164637759,-342193.75352684,0.00023,2]
[314298549,1708164637769,-182.01,0.00023048,2]
[314298550,1708164637779,-177.43,0.00023096,2]
[314298551,1708164637789,-162.89,0.00023126,2]
[314298552,1708164637798,-162.89,0.0002327,2]
[314298553,1708164637808,-150.0,0.00023544,2]
[314298554,1708164637818,-7777.34,0.00023572,2]
[314298555,1708164637828,-177.43,0.00023644,2]
[314298556,1708164637838,-6627.9,0.00023764,2]
[314298557,1708164637849,-200.0,0.0002377,2]
[314298558,1708164637860,-300.0,0.0002407,2]
[314298559,1708164637873,-167.0,0.00024074,2]
[314298560,1708164637882,-150.0,0.00024092,2]
[314298561,1708164637891,-853.1,0.00024096,2]
[314298562,1708164637901,-177.43,0.00024192,2]
[314298563,1708164637911,-316.55789385,0.0002425,2]
[314298564,1708164637921,-714.83,0.0002425,2]
[314298565,1708164637932,-7430.68,0.00024384,2]
[314298566,1708164637942,-150.0,0.0002464,2]
[314298567,1708164637951,-250.0,0.00024658,2]
[314298568,1708164637962,-500.0,0.00024658,2]
[314298569,1708164637971,-1163.77,0.00024661,2]
[314298570,1708164637980,-177.43,0.0002474,2]
[314298571,1708164637990,-210.0,0.00024802,2]
[314298572,1708164637999,-155.17495206,0.0002489,2]
[314298573,1708164638008,-1000.0,0.00024969,2]
[314298574,1708164638017,-1709.27742184,0.00025,2]
[314298575,1708164638027,-917.53699392,0.00025,2]
[314298576,1708164638196,-31677.35167791,0.0002509,2]
[314298577,1708164638208,-881.9688073,0.0002509,2]
[314298578,1708164638218,-164.11335802,0.00025188,2]
[314298579,1708164638228,-315.73290937,0.00025226,2]
[314298580,1708164638239,-853.1,0.00025243,2]
[314298581,1708164638249,-177.43,0.00025288,2]
[314298582,1708164638260,-212.24,0.00025299,2]
[314298583,1708164638272,-167.0,0.00025398,2]
[314298584,1708164638281,-6627.9,0.00025408,2]
[314298585,1708164638290,-300.0,0.0002544,2]
[314298586,1708164638300,-942.48,0.00025515,2]
[314298587,1708164638311,-942.48,0.00025649,2]
[314298588,1708164638321,-942.48,0.00025784,2]
[314298589,1708164638331,-177.43,0.00025836,2]
[314298590,1708164638341,-942.48,0.00025918,2]
[314298591,1708164638351,-942.48,0.00026052,2]
[314298592,1708164638361,-150.0,0.00026079,2]
[314298593,1708164638371,-768.71,0.00026134,2]
[314298594,1708164638380,-942.48,0.00026187,2]
[314298595,1708164638391,-13714.92532535,0.000263,2]
[314298596,1708164638401,-942.48,0.00026321,2]
[314298597,1708164638412,-177.43,0.00026384,2]
[314298598,1708164638421,-853.1,0.0002639,2]
[314298599,1708164638431,-942.48,0.00026455,2]
[314298600,1708164638441,-942.48,0.0002659,2]
[314298601,1708164638450,-212.24,0.00026705,2]
[314298602,1708164638459,-167.0,0.00026722,2]
[314298603,1708164638468,-942.48,0.00026724,2]
[314298604,1708164638477,-942.48,0.00026858,2]
[314298605,1708164638490,-1163.77,0.00026925,2]
[314298606,1708164638500,-177.43,0.00026932,2]
[314298607,1708164638510,-942.48,0.00026992,2]
[314298608,1708164638519,-201.53577253,0.00027,4]
[314298609,1708164638530,-6627.9,0.00027052,2]
[314298610,1708164638541,-768.71,0.00027058,2]
[314298611,1708164638550,-942.48,0.00027127,2]
[314298612,1708164638559,-27479.76473038,0.000272,2]
[314298613,1708164638569,-942.48,0.00027261,2]
[314298614,1708164638580,-293.0,0.00027282,2]
[314298615,1708164638589,-187.47,0.00027347,2]
[314298616,1708164638600,-942.48,0.00027395,2]
[314298617,1708164638611,-155.0,0.00027397,2]
[314298618,1708164638620,-150.0,0.00027397,2]
[314298619,1708164638629,-3000.0,0.00027397,2]
[314298620,1708164638638,-3000.0,0.00027397,2]
[314298621,1708164638648,-3000.0,0.00027397,2]
[314298622,1708164638656,-3000.0,0.00027397,2]
[314298623,1708164638666,-3000.0,0.00027397,2]
[314298624,1708164638676,-3000.0,0.00027397,2]
[314298625,1708164638685,-3000.0,0.00027397,2]
[314298626,1708164638695,-3000.0,0.00027397,2]
[314298627,1708164638704,-3000.0,0.00027397,2]
[314298628,1708164638713,-3000.0,0.00027397,2]
[314298629,1708164638722,-3000.0,0.00027397,2]
[314298630,1708164638731,-3000.0,0.00027397,2]
[314298631,1708164638741,-3000.0,0.00027397,2]
[314298632,1708164638750,-3000.0,0.00027397,2]
[314298633,1708164638759,-4842.90253915,0.00027397,2]
[314298634,1708164638769,-302.81215118,0.00027397,5]
[314298635,1708164638777,-20636.42,0.00027397,2]
[314298636,1708164638786,-177.43,0.0002748,2]
[314298637,1708164638797,-8256.37090165,0.000275,2]
[314298638,1708164638806,-942.48,0.0002753,2]
[314298639,1708164638815,-853.1,0.00027538,2]
[314298640,1708164638825,-20636.42,0.00027556,2]
[314298641,1708164638834,-315.73290937,0.00027651,3]
[314298642,1708164638843,-942.48,0.00027664,2]
[314298643,1708164638852,-20636.42,0.00027714,2]
[314298644,1708164638867,-1000.0,0.00027743,2]
[314298645,1708164638876,-942.48,0.00027798,2]
[314298646,1708164638887,-20636.42,0.00027872,2]
[314298647,1708164638897,-176.54488879,0.000279,2]
[314298648,1708164638906,-942.48,0.00027933,2]
[314298649,1708164638916,-150.0,0.00027945,2]
[314298650,1708164638925,-768.71,0.00027982,2]
[314298651,1708164638936,-201.68185797,0.00027999,2]
[314298652,1708164638945,-470.59100194,0.00027999,2]
[314298653,1708164638955,-1487992.74697091,0.00028,2]
[314298654,1708164638965,-1014.39933581,0.00028,20]
[314298655,1708164638975,-177.43,0.00028028,2]
[314298656,1708164638985,-20636.42,0.0002803,2]
[314298657,1708164638995,-167.0,0.00028047,2]
[314298658,1708164639004,-942.48,0.00028067,2]
[314298659,1708164639013,-17793.90178936,0.000281,2]
[314298660,1708164639022,-212.24,0.00028111,2]
[314298661,1708164639031,-231.09,0.0002813,2]
[314298662,1708164639040,-20636.42,0.00028189,2]
[314298663,1708164639050,-20636.42,0.00028347,2]
[314298664,1708164639060,-150.0,0.00028493,2]
[314298665,1708164639069,-20636.42,0.00028505,2]
[314298666,1708164639080,-177.43,0.00028576,2]
[314298667,1708164639090,-20636.42,0.00028664,2]
[314298668,1708164639100,-6627.9,0.00028696,2]
[314298669,1708164639109,-187.47,0.00028715,2]
[314298670,1708164639118,-155.0,0.00028767,2]
[314298671,1708164639127,-20636.42,0.00028822,2]
[314298672,1708164639136,-768.71,0.00028906,2]
[314298673,1708164639146,-800.0,0.00028986,2]
[314298674,1708164639155,-155.17495203,0.00029014,2]
[314298675,1708164639164,-150.0,0.00029041,2]
[314298676,1708164639174,-177.43,0.00029124,2]
[314298677,1708164639183,-1163.77,0.00029189,2]
[314298678,1708164639192,-518.69574916,0.000295,3]
[314298679,1708164639202,-205.0,0.000295,2]
[314298680,1708164639211,-212.24,0.00029516,2]
[314298681,1708164639220,-150.0,0.00029589,2]
[314298682,1708164639229,-177.43,0.00029672,2]
[314298683,1708164639238,-768.71,0.00029831,2]
[314298684,1708164639247,-241.73047039,0.00029999,2]
[314298685,1708164639256,-203.98922904,0.00029999,2]
[314298686,1708164639266,-32441.71883704,0.0003,4]
[314298687,1708164639277,-1861.66346308,0.0003,4]
[314298688,1708164639286,-1177.58646698,0.0003,4]
[314298689,1708164639295,-456266.95772415,0.0003,2]
[314298690,1708164639304,-20166.8921434,0.0003,2]
[314298691,1708164639313,-411.0,0.0003001,2]
[314298692,1708164639322,-315.73290937,0.00030077,4]
[314298693,1708164639331,-187.47,0.00030082,2]
[314298694,1708164639341,-687.62801211,0.000301,2]
[314298695,1708164639350,-156.4,0.00030137,2]
[314298696,1708164639359,-155.0,0.00030137,2]
[314298697,1708164639368,-150.0,0.00030137,2]
[314298698,1708164639377,-346.73926615,0.0003022,2]
[314298699,1708164639387,-6627.9,0.0003034,2]
[314298700,1708164639396,-1000.0,0.00030517,2]
[314298701,1708164639405,-150.0,0.00030685,2]
[314298702,1708164639414,-768.71,0.00030755,2]
[314298703,1708164639423,-156.4,0.0003092,2]
[314298704,1708164639433,-212.24,0.00030922,2]
[314298706,1708164639442,-2877.57,0.00030949,2]
[314298707,1708164639451,-150.0,0.00031233,2]
[314298708,1708164639460,-2180.58413957,0.0003134,2]
[314298709,1708164639469,-170.26106011,0.0003134,2]
[314298710,1708164639478,-187.47,0.00031449,2]
[314298711,1708164639487,-1163.77,0.00031453,2]
[314298712,1708164639496,-155.0,0.00031507,2]
[314298713,1708164639505,-169.31,0.00031644,2]
[314298714,1708164639514,-768.71,0.00031679,2]
[314298715,1708164639523,-156.4,0.00031703,2]
[314298716,1708164639532,-178.83894219,0.00031781,2]
[314298717,1708164639541,-274.25863854,0.000318,3]
[314298718,1708164639550,-800.0,0.0003211,2]
[314298719,1708164639559,-412.37702673,0.00032125,2]
[314298720,1708164639568,-212.24,0.00032327,2]
[314298721,1708164639577,-156.4,0.00032485,2]
[314298722,1708164639587,-290.57852164,0.000325,4]
[314298723,1708164639597,-315.73290937,0.00032503,6]
[314298724,1708164639606,-187.47,0.00032817,2]
[314298725,1708164639615,-37326.86,0.00032877,2]
[314298726,1708164639624,-155.0,0.00032877,2]
[314298727,1708164639634,-8000.0,0.000329,2]
[314298728,1708164639643,-1262.81416688,0.00033,2]
[314298729,1708164639652,-153.48458053,0.00033,2]
[314298730,1708164639661,-401.0,0.00033011,2]
[314298731,1708164639670,-155.17495203,0.00033138,5]
[314298732,1708164639682,-156.4,0.00033268,2]
[314298733,1708164639692,-1000.0,0.00033292,2]
[314298734,1708164639701,-1000.0,0.00033367,2]
[314298735,1708164639711,-1163.77,0.00033717,2]
[314298736,1708164639720,-212.24,0.00033733,2]
[314298737,1708164639730,-153.62677809,0.000339,2]
[314298738,1708164639740,-153.62677801,0.000339,2]
[314298739,1708164639749,-153.62677801,0.000339,2]
[314298740,1708164639758,-153.62677801,0.000339,2]
[314298741,1708164639766,-153.62677801,0.000339,2]
[314298742,1708164639776,-153.62677801,0.000339,2]
[314298743,1708164639785,-156.4,0.00034051,2]
[314298744,1708164639795,-153.62677801,0.00034168,2]
[314298745,1708164639804,-4573.0,0.000342,2]
[314298746,1708164639813,-155.0,0.00034247,2]
[314298747,1708164639822,-24605.599197,0.0003452,2]
[314298748,1708164639832,-3373.152201,0.0003452,2]
[314298749,1708164639841,-3991.71,0.00034521,2]
[314298750,1708164639850,-36908.398796,0.00034794,2]
[314298751,1708164639860,-5059.728301,0.00034794,2]
[314298752,1708164639869,-156.4,0.00034834,2]
[314298753,1708164639881,-167.0,0.0003487,2]
[314298754,1708164639890,-3264.09059701,0.000349,2]
[314298755,1708164639899,-3264.09059697,0.000349,2]
[314298756,1708164639909,-3264.09059697,0.000349,2]
[314298757,1708164639918,-3264.09059697,0.000349,2]
[314298758,1708164639928,-3264.09059697,0.000349,2]
[314298759,1708164639938,-3264.09059697,0.000349,2]
[314298760,1708164639948,-3264.09059697,0.000349,2]
[314298761,1708164639958,-3264.09059697,0.000349,2]
[314298762,1708164639968,-23233.57203364,0.00034928,2]
[314298763,1708164639978,-315.73290937,0.00034929,7]
[314298764,1708164639987,-49211.198395,0.00034931,2]
[314298765,1708164639996,-6746.304402,0.00034931,2]
[314298766,1708164640007,-2453.19325357,0.00035,5]
[314298767,1708164640017,-15872.75458595,0.00035,7]
[314298768,1708164640026,-12938.96551711,0.00035,2]
[314298769,1708164640036,-38661.45884693,0.00035,4]
[314298770,1708164640045,-4600.38653042,0.00035,4]
[314298771,1708164640054,-230.08544777,0.00035,7]
[314298772,1708164640064,-420.37567499,0.00035,2]
[314298773,1708164640073,-484.08793418,0.00035,2]
[314298774,1708164640082,-250.0,0.00035,120]
[314298775,1708164640091,-18211.22257101,0.00035,2]
[314298776,1708164640100,-61513.997994,0.00035068,2]
[314298777,1708164640109,-8432.880502,0.00035068,2]
[314298778,1708164640119,-13778.79565766,0.0003509,2]
[314298780,1708164640129,-212.24,0.00035138,2]
[314298781,1708164640138,-86119.597192,0.00035342,2]
[314298782,1708164640147,-11806.032703,0.00035342,2]
[314298783,1708164640157,-3264.09059697,0.00035432,2]
[314298784,1708164640166,-4573.32742096,0.000356,2]
[314298785,1708164640175,-500.0,0.00035616,2]
[314298786,1708164640184,-500.0,0.00035616,2]
[314298787,1708164640194,-500.0,0.00035616,2]
[314298788,1708164640203,-500.0,0.00035616,2]
[314298789,1708164640212,-500.0,0.00035616,2]
[314298790,1708164640223,-500.0,0.00035616,2]
[314298791,1708164640234,-500.0,0.00035616,2]
[314298792,1708164640243,-500.0,0.00035616,2]
[314298793,1708164640252,-500.0,0.00035616,2]
[314298794,1708164640262,-500.0,0.00035616,2]
[314298795,1708164640273,-500.0,0.00035616,2]
[314298796,1708164640285,-500.0,0.00035616,2]
[314298797,1708164640295,-500.0,0.00035616,2]
[314298798,1708164640304,-500.0,0.00035616,2]
[314298799,1708164640314,-500.0,0.00035616,2]
[314298800,1708164640323,-500.0,0.00035616,2]
[314298801,1708164640333,-500.0,0.00035616,2]
[314298802,1708164640342,-500.0,0.00035616,2]
[314298803,1708164640351,-500.0,0.00035616,2]
[314298804,1708164640360,-500.0,0.00035616,2]
[314298805,1708164640370,-156.4,0.00035616,2]
[314298806,1708164640380,-201.70261338,0.00035616,2]
[314298807,1708164640389,-7430.68,0.00035616,2]
[314298808,1708164640398,-1500.0,0.00035616,10]
[314298809,1708164640409,-155.0,0.00035617,2]
[314298810,1708164640418,-3991.71,0.00035798,2]
[314298811,1708164640430,-206.88,0.000358,7]
[314298812,1708164640439,-2551.43713194,0.000359,2]
[314298813,1708164640448,-1163.77,0.00035981,2]
[314298814,1708164640457,-250.0,0.00036,120]
[314298815,1708164640466,-153.62677801,0.00036063,2]
[314298816,1708164640475,-1000.0,0.00036326,2]
[314298817,1708164640484,-175.78710654,0.0003635,2]
[314298818,1708164640493,-241.73047039,0.00036388,2]
[314298819,1708164640502,-203.98922904,0.00036388,2]
[314298820,1708164640511,-37106.96112786,0.00036389,2]
[314298821,1708164640521,-37106.96112781,0.00036389,2]
[314298822,1708164640530,-37106.96112781,0.00036389,2]
[314298823,1708164640539,-37106.96112781,0.00036389,2]
[314298824,1708164640550,-37106.96112781,0.00036389,2]
[314298825,1708164640560,-156.4,0.00036399,2]
[314298826,1708164640569,-40346.90677439,0.000365,7]
[314298827,1708164640578,-212.24,0.00036544,2]
[314298828,1708164640587,-1000.0,0.00036718,2]
[314298829,1708164640596,-15171.50569327,0.00036798,2]
[314298830,1708164640606,-15171.50569318,0.00036798,2]
[314298831,1708164640615,-15171.50569318,0.00036798,2]
[314298832,1708164640624,-15171.50569318,0.00036798,2]
[314298833,1708164640634,-15171.50569318,0.00036798,2]
[314298834,1708164640644,-150.0,0.00036986,2]
[314298835,1708164640653,-300.0,0.00036986,7]
[314298836,1708164640662,-450.0,0.00036986,12]
[314298837,1708164640671,-316.64550976,0.00036986,17]
[314298838,1708164640683,-155.0,0.00036987,2]
[314298839,1708164640693,-3264.09059697,0.00037011,2]
[314298840,1708164640702,-3991.71,0.00037075,2]
[314298841,1708164640712,-156.4,0.00037182,2]
[314298842,1708164640721,-155.17495203,0.00037262,10]
[314298843,1708164640731,-315.73290937,0.00037354,8]
[314298844,1708164640740,-235.46768901,0.000376,2]
[314298845,1708164640749,-15171.50569318,0.00037627,2]
[314298846,1708164640759,-37106.96112781,0.00037627,2]
[314298847,1708164640768,-180.0,0.00037671,2]
[314298848,1708164640778,-17788.0,0.00037877,2]
[314298849,1708164640787,-200.0,0.0003789,7]
[314298850,1708164640797,-23233.57203364,0.00037897,2]
[314298851,1708164640806,-671642.625906,0.000379,3]
[314298852,1708164640817,-18211.22257101,0.000379,2]
[314298853,1708164640826,-212.24,0.00037949,2]
[314298854,1708164640835,-153.62677801,0.00037958,2]
[314298855,1708164640847,-156.4,0.00037965,2]
[314298856,1708164640856,-215.98921406,0.00038,4]
[314298857,1708164640866,-13383.0,0.000381,2]
[314298858,1708164640876,-2461.0,0.000381,2]
[314298859,1708164640887,-1163.77,0.00038244,2]
[314298860,1708164640897,-3991.71,0.00038352,2]
[314298861,1708164640906,-151.98,0.00038356,2]
[314298862,1708164640915,-517.13,0.00038356,15]
[314298863,1708164640925,-201.59,0.00038356,2]
[314298864,1708164640934,-155.0,0.00038357,2]
[314298865,1708164640944,-1000.0,0.00038368,2]
[314298866,1708164640955,-3264.09059697,0.00038589,2]
[314298867,1708164640964,-2000.0,0.000386,2]
[314298868,1708164640972,-156.4,0.00038747,2]
[314298869,1708164640982,-162.83,0.00038927,2]
[314298870,1708164640991,-1907.83291422,0.00039,2]
[314298871,1708164641000,-206.88,0.00039,7]
[314298872,1708164641010,-529.23,0.0003926,2]
[314298873,1708164641019,-1000.0,0.00039285,2]
[314298874,1708164641028,-156.4,0.0003953,2]
[314298875,1708164641038,-3991.71,0.0003963,2]
[314298876,1708164641048,-156.89541827,0.000397,4]
[314298877,1708164641058,-155.0,0.00039727,2]
[314298878,1708164641067,-315.73290937,0.0003978,9]
[314298879,1708164641077,-2180.58413957,0.0003978,2]
[314298880,1708164641087,-196.59,0.000398,2]
[314298881,1708164641097,-153.62677801,0.00039853,6]
[314298882,1708164641106,-209.18429795,0.0003987,7]
[314298883,1708164641116,-200.0,0.0003987,7]
[314298884,1708164641125,-241.73047039,0.00039876,2]
[314298885,1708164641134,-203.98922904,0.00039876,2]
[314298886,1708164641144,-162635.00423548,0.00039877,2]
[314298887,1708164641153,-241.73047039,0.00039879,2]
[314298888,1708164641162,-203.98922904,0.00039879,2]
[314298889,1708164641293,-203.98922904,0.00039879,2]
[314298890,1708164641302,-241.73047039,0.00039879,2]
[314298891,1708164641311,-203.98922904,0.00039879,2]
[314298892,1708164641320,-241.73047039,0.00039879,2]
[314298893,1708164641329,-2972384.50059619,0.0003988,2]
[314298894,1708164641339,-420.37567499,0.0003988,2]
[314298895,1708164641348,-484.08793418,0.0003988,2]
[314298896,1708164641357,-150.808351,0.000399,2]
[314298897,1708164641366,-162.83,0.00039901,2]
[314298898,1708164641375,-170.32,0.0003999,10]
[314298899,1708164641385,-1212.91218193,0.0004,4]
[314298900,1708164641394,-159.61444784,0.0004,30]
[314298901,1708164641404,-59206.32751063,0.0004,30]
[314298902,1708164641413,-571.62122995,0.0004,2]
[314298903,1708164641422,-2645.01335604,0.0004,2]
[314298904,1708164641432,-150.1,0.0004,3]
[314298905,1708164641442,-5268.49,0.0004,40]
[314298906,1708164641451,-952.25345378,0.0004,2]
[314298907,1708164641460,-39498.4927,0.00040091,2]
[314298908,1708164641469,-3888.3729,0.00040091,2]
[314298909,1708164641478,-100000.0,0.00040091,2]
[314298910,1708164641487,-7206.3845,0.00040091,2]
[314298911,1708164641497,-682.4769,0.00040091,2]
[314298912,1708164641506,-3264.09059697,0.00040168,5]
[314298913,1708164641515,-245000.0,0.00040191,2]
[314298914,1708164641524,-500.0,0.00040191,2]
[314298915,1708164641533,-156.4,0.00040313,2]
[314298916,1708164641542,-1163.77,0.00040508,2]
[314298917,1708164641551,-210.0,0.00040512,2]
[314298918,1708164641560,-15171.50569318,0.00040593,3]
[314298919,1708164641569,-37106.96112781,0.00040593,3]
[314298920,1708164641578,-165.0,0.000406,7]
[314298921,1708164641587,-2090.61281058,0.0004069,13]
[314298922,1708164641596,-76436.36251235,0.00040711,13]
[314298923,1708164641605,-529.23,0.00040733,2]
[314298924,1708164641614,-4257.46976662,0.00040754,12]
[314298925,1708164641623,-9034.20121458,0.00040754,13]
[314298926,1708164641632,-162.83,0.00040874,2]
[314298927,1708164641641,-8788.42825391,0.00040884,120]
[314298928,1708164641650,-66019.60119702,0.00040884,2]
[314298929,1708164641659,-23017.94119475,0.00040884,32]
[314298930,1708164641669,-1103.54391099,0.00040884,3]
[314298931,1708164641681,-15931.47244674,0.00040884,2]
[314298932,1708164641690,-275.15622716,0.00040884,30]
[314298933,1708164641700,-216.5760994,0.00040884,30]
[314298934,1708164641710,-155.56468996,0.00040884,120]
[314298935,1708164641719,-5358.94753529,0.00040884,2]
[314298936,1708164641730,-899.0,0.00040884,75]
[314298937,1708164641739,-283.32387974,0.00040884,2]
[314298938,1708164641749,-468.77508963,0.00040884,2]
[314298939,1708164641758,-159.35404023,0.00040884,30]
[314298940,1708164641767,-155.39982316,0.00040884,2]
[314298941,1708164641777,-385.13127339,0.00040884,2]
[314298942,1708164641786,-17905.96232048,0.00040884,2]
[314298943,1708164641795,-32666.56886121,0.00040884,120]
[314298944,1708164641804,-201.59239623,0.00040884,120]
[314298945,1708164641813,-466.0482353,0.00040884,2]
[314298946,1708164641823,-656.47572142,0.00040884,2]
[314298947,1708164641832,-311.01975504,0.00040884,2]
[314298948,1708164641841,-13573.05826683,0.00040884,120]
[314298949,1708164641850,-3008.17816563,0.00040884,4]
[314298950,1708164641860,-5341.2139736,0.00040884,7]
[314298951,1708164641871,-5514.42836242,0.00040884,13]
[314298952,1708164641880,-2644.91665641,0.00040884,2]
[314298953,1708164641892,-6224.69585873,0.00040884,4]
[314298954,1708164641901,-156.29488104,0.00040884,2]
[314298955,1708164641910,-17186.66812909,0.00040884,2]
[314298956,1708164641920,-1808.63572407,0.00040884,2]
[314298957,1708164641930,-649.70326211,0.00040884,120]
[314298958,1708164641939,-169.71709592,0.00040884,120]
[314298959,1708164641949,-155.29370094,0.00040884,2]
[314298960,1708164641958,-20009.47953652,0.00040884,2]
[314298961,1708164641968,-306.59704943,0.00040884,120]
[314298962,1708164641978,-701.82634713,0.00040884,30]
[314298963,1708164641988,-151.34673705,0.00040884,30]
[314298964,1708164641997,-158.00946671,0.00040884,60]
[314298965,1708164642007,-437.6563897,0.00040884,14]
[314298966,1708164642016,-199.26055783,0.00040884,30]
[314298967,1708164642025,-5630.66900529,0.00040884,2]
[314298968,1708164642035,-1137.37989133,0.00040884,2]
[314298969,1708164642044,-151.0,0.00040884,30]
[314298970,1708164642054,-1741.688955,0.00040884,30]
[314298971,1708164642064,-150.0,0.00040884,120]
[314298972,1708164642073,-230.0,0.00040884,120]
[314298973,1708164642082,-7537.01757032,0.00040884,30]
[314298974,1708164642091,-472.09255615,0.00040884,30]
[314298975,1708164642101,-238.19867172,0.00041,30]
[314298976,1708164642110,-166.0,0.00041,2]
[314298977,1708164642119,-2504.26815191,0.00041095,2]
[314298978,1708164642129,-506.29499783,0.00041095,2]
[314298979,1708164642138,-156.4,0.00041096,2]
[314298980,1708164642147,-155.0,0.00041097,2]
[314298981,1708164642156,-2000.0,0.000411,2]
[314298982,1708164642166,-2253.0,0.000411,2]
[314298983,1708164642176,-663.59417096,0.000411,2]
[314298984,1708164642186,-165.0,0.00041148,7]
[314298985,1708164642195,-945.0534,0.00041199,2]
[314298986,1708164642205,-155.17495203,0.00041385,15]
[314298987,1708164642214,-2000.0,0.000414,2]
[314298988,1708164642223,-1000.0,0.000416,6]
[314298989,1708164642233,-165.0,0.00041696,7]
[314298990,1708164642243,-203.98922904,0.00041746,3]
[314298991,1708164642252,-241.73047039,0.00041746,3]
[314298992,1708164642261,-153.62677801,0.00041747,13]
[314298993,1708164642271,-3264.09059697,0.00041747,5]
[314298994,1708164642280,-201.59,0.00041781,2]
[314298995,1708164642290,-154.89,0.000418,4]
[314298996,1708164642299,-153.5,0.000418,4]
[314298997,1708164642309,-153.5,0.000418,4]
[314298998,1708164642318,-153.5,0.000418,4]
[314298999,1708164642328,-153.5,0.000418,4]
[314299000,1708164642337,-153.5,0.000418,4]
[314299001,1708164642346,-153.5,0.000418,4]
[314299002,1708164642358,-153.5,0.000418,4]
[314299003,1708164642367,-153.5,0.000418,4]
[314299005,1708164642377,-153.5,0.000418,4]
[314299006,1708164642386,-153.5,0.000418,4]
[314299007,1708164642395,-153.5,0.000418,4]
[314299008,1708164642404,-153.5,0.000418,4]
[314299009,1708164642413,-153.5,0.000418,4]
[314299010,1708164642422,-153.5,0.000418,4]
[314299011,1708164642434,-153.5,0.000418,4]
[314299012,1708164642444,-153.5,0.000418,4]
[314299013,1708164642453,-153.5,0.000418,4]
[314299014,1708164642463,-162.83,0.00041847,2]
[314299015,1708164642471,-231.21,0.0004199,120]
[314299016,1708164642481,-173.51,0.0004199,120]
[314299017,1708164642490,-7464.35666775,0.00042,2]
[314299019,1708164642499,-965.47916117,0.00042,7]
[314299020,1708164642509,-338.5789,0.00042,59]
[314299021,1708164642518,-517.13,0.00042092,15]
[314299022,1708164642527,-151.98,0.00042192,2]
[314299023,1708164642537,-2000.0,0.000422,2]
[314299024,1708164642546,-529.23,0.00042205,2]
[314299025,1708164642555,-165.0,0.00042244,7]
[314299026,1708164642564,-1000.0,0.00042244,2]
[314299028,1708164642573,-155.0,0.00042467,2]
[314299030,1708164642582,-5000.0,0.000425,45]
[314299031,1708164642591,-158.23203844,0.00042533,30]
[314299032,1708164642600,-1163.77,0.00042772,2]